bitfinex-derivatives/quotes_SOLF0:USTF0_20241217
["timestamp","ask_amount","ask_price","bid_price","bid_amount"]
[1734432619934,2.24,222.47,222.42,1.1246713]
[1734432620123,2.24,222.47,222.42,5.89360925]
[1734432620328,2.24,222.47,222.42,4.76893795]
[1734432620528,2.2479,222.44,222.42,4.76893795]
[1734432620828,2.2479,222.44,222.43,4.76893795]
[1734432622526,2.2478,222.45,222.43,4.76893795]
[1734432622726,2.2478,222.45,222.42,2.248]
[1734432622931,2.2478,222.45,222.43,4.77196718]
[1734432623233,2.2478,222.45,222.42,2.248]
[1734432623436,2.2478,222.45,222.43,4.77194735]
[1734432623732,2.2478,222.45,222.42,2.248]
[1734432624031,2.2475,222.48,222.44,2.2478]
[1734432624233,2.2475,222.48,222.45,4.77214035]
[1734432624534,2.2475,222.48,222.41,2.2481]
[1734432624731,2.2477,222.46,222.42,5.89632777]
[1734432624931,10.68909117,222.51,222.43,4.77173107]
[1734432625232,10.68909117,222.51,222.44,4.77173107]
[1734432625437,10.68909117,222.51,222.42,2.248]
[1734432625731,10.68909117,222.51,222.43,5.89654173]
[1734432625927,10.68909117,222.51,222.44,4.77189814]
[1734432626124,10.68909117,222.51,222.45,4.77189814]
[1734432626330,10.68909117,222.51,222.42,2.248]
[1734432626527,10.68909117,222.51,222.43,4.77206095]
[1734432626736,10.68909117,222.51,222.42,2.248]
[1734432626737,10.68909117,222.51,222.44,4.77206095]
[1734432627031,10.68909117,222.51,222.42,2.248]
[1734432627225,10.68909117,222.51,222.43,5.89660764]
[1734432627431,10.68909117,222.51,222.44,4.77192708]
[1734432627734,10.68909117,222.51,222.38,2.24]
[1734432627936,10.68909117,222.51,222.44,2.2478]
[1734432628134,2.9788,222.52,222.45,5.89648447]
[1734432628329,2.9788,222.52,222.46,5.89643148]
[1734432628534,2.2473,222.5,222.47,4.77193574]
[1734432628829,2.2473,222.5,222.46,2.2476]
[1734432629126,2.2473,222.5,222.47,5.89573406]
[1734432629332,2.2473,222.5,222.48,4.77126944]
[1734432629525,2.2473,222.5,222.46,2.2476]
[1734432629725,2.2474,222.49,222.47,4.77057451]
[1734432630326,2.2474,222.49,222.46,2.2476]
[1734432630528,2.9788,222.52,222.47,4.77030791]
[1734432630734,2.9788,222.52,222.44,4.4878]
[1734432630934,2.9788,222.52,222.45,5.89497277]
[1734432631141,10.68909117,222.5,222.41,2.2481]
[1734432631431,10.68909117,222.5,222.42,5.89541841]
[1734432631635,2.2478,222.46,222.43,5.89541841]
[1734432631827,10.68909117,222.5,222.44,5.89541841]
[1734432632032,2.2477,222.46,222.42,2.2481]
[1734432632233,10.68909117,222.5,222.43,5.89526703]
[1734432632528,10.68909117,222.5,222.44,4.77063152]
[1734432632736,10.68909117,222.5,222.45,4.77074142]
[1734432633030,10.68909117,222.5,222.42,2.248]
[1734432633229,2.2477,222.46,222.42,2.248]
[1734432633425,2.2477,222.46,222.43,4.77045361]
[1734432633825,10.68909117,222.5,222.43,4.77045361]
[1734432634035,2.2478,222.45,222.43,4.77045361]
[1734432634333,2.2478,222.45,222.42,2.248]
[1734432634536,2.2478,222.45,222.43,4.77110765]
[1734432634837,2.2478,222.45,222.43,2.248]
[1734432635031,10.68909117,222.5,222.43,2.248]
[1734432635032,2.2477,222.46,222.43,2.248]
[1734432635237,2.2477,222.46,222.44,4.77098538]
[1734432635436,2.2477,222.46,222.43,2.248]
[1734432635935,2.2477,222.46,222.44,4.77219072]
[1734432636233,2.2477,222.46,222.43,2.248]
[1734432636636,2.2477,222.46,222.44,4.77338683]
[1734432636838,2.2477,222.46,222.43,2.248]
[1734432637137,2.2477,222.46,222.44,4.77337224]
[1734432637334,2.2477,222.46,222.43,2.248]
[1734432637637,2.9788,222.52,222.44,4.77352877]
[1734432637638,2.2475,222.48,222.44,4.77352877]
[1734432637834,2.2475,222.48,222.4,2.24]
[1734432637835,2.2475,222.48,222.45,4.77352877]
[1734432638032,2.2477,222.46,222.42,2.248]
[1734432638237,2.2477,222.46,222.43,4.7740581]
[1734432638436,2.2477,222.46,222.44,4.7740581]
[1734432638641,2.2477,222.46,222.45,4.7740581]
[1734432638937,2.2476,222.47,222.45,4.7740581]
[1734432639135,5.2188,222.52,222.45,2.2477]
[1734432639335,5.2188,222.52,222.46,4.77476217]
[1734432639533,10.68909117,222.53,222.42,10.68909117]
[1734432639738,12.92909117,222.56,222.42,10.68909117]
[1734432640033,12.92909117,222.56,222.43,4.77439185]
[1734432640242,12.92909117,222.56,222.47,2.2475]
[1734432640541,12.92909117,222.56,222.48,4.77439185]
[1734432640839,12.93639117,222.5,222.49,4.77439185]
[1734432641033,10.68909117,222.5,222.41,2.2481]
[1734432641235,10.68909117,222.5,222.42,4.77545917]
[1734432641538,2.2477,222.46,222.43,4.77545917]
[1734432641740,10.68909117,222.5,222.44,4.77545917]
[1734432641934,2.2477,222.46,222.42,2.248]
[1734432642142,2.2477,222.46,222.43,4.77561753]
[1734432642345,2.2477,222.46,222.44,4.77561753]
[1734432642544,2.2475,222.48,222.45,4.77561753]
[1734432642843,2.2475,222.48,222.46,4.77540344]
[1734432643040,2.2475,222.48,222.47,4.77540344]
[1734432643538,2.2475,222.48,222.38,10.68909117]
[1734432643738,2.2475,222.48,222.42,2.24]
[1734432643938,2.2475,222.48,222.43,4.7753672]
[1734432644438,2.2475,222.48,222.44,4.7753672]
[1734432644646,10.68909117,222.56,222.45,4.7753672]
[1734432644943,2.2472,222.51,222.47,2.2476]
[1734432645246,2.24,222.55,222.48,4.7753672]
[1734432645541,2.24,222.56,222.49,7.0226672]
[1734432645741,2.24,222.56,222.5,4.7753672]
[1734432645937,2.24,222.56,222.47,2.24]
[1734432646142,2.24,222.56,222.48,4.7746755]
[1734432646342,2.24,222.56,222.47,2.24]
[1734432646644,2.24,222.56,222.49,4.77468833]
[1734432647145,2.24,222.56,222.5,4.77468833]
[1734432647443,1.5341,222.61,222.51,4.77366513]
[1734432647645,1.5341,222.61,222.52,4.77366513]
[1734432647840,2.2465,222.58,222.53,2.2469]
[1734432648041,2.2465,222.58,222.53,7.02056513]
[1734432648236,2.2465,222.58,222.54,4.77366513]
[1734432648442,2.2465,222.58,222.53,2.2469]
[1734432648642,2.2465,222.58,222.54,2.2468]
[1734432649042,2.2464,222.59,222.54,2.2468]
[1734432649241,2.2464,222.59,222.55,2.2467]
[1734432655447,0.19012,222.62,222.56,4.75421727]
[1734432655648,0.19012,222.62,222.54,2.22]
[1734432656748,2.2466,222.57,222.54,2.22]
[1734432657745,2.2467,222.56,222.54,2.22]
[1734432658251,0.19012,222.62,222.54,2.22]
[1734432659543,2.2467,222.56,222.54,2.22]
[1734432660957,10.68909117,222.63,222.54,2.22]
[1734432661444,2.2465,222.58,222.55,4.7509108]
[1734432661645,2.2465,222.58,222.54,4.4668]
[1734432661855,10.68909117,222.63,222.54,2.22]
[1734432662247,10.68909117,222.63,222.56,2.2466]
[1734432663656,2.2463,222.6,222.56,2.2466]
[1734432664059,10.68909117,222.63,222.54,2.22]
[1734432664355,2.2462,222.61,222.55,4.74969128]
[1734432664553,2.2462,222.61,222.54,2.22]
[1734432664857,2.2462,222.61,222.55,4.74881326]
[1734432665058,2.2462,222.61,222.57,2.2465]
[1734432665249,8.64540984,222.67,222.56,4.74880419]
[1734432665250,2.246,222.63,222.56,4.74880419]
[1734432665448,2.246,222.63,222.54,2.22]
[1734432665654,2.246,222.63,222.55,4.74801097]
[1734432665858,2.246,222.63,222.59,2.2463]
[1734432666455,3.1406,222.67,222.59,2.22]
[1734432666655,1.5657,222.73,222.59,12.90909117]
[1734432666858,12.54014117,222.74,222.67,2.2455]
[1734432667055,12.54014117,222.74,222.64,2.22]
[1734432667353,2.2451,222.72,222.64,2.22]
[1734432667659,12.54014117,222.74,222.67,2.2455]
[1734432668360,12.54014117,222.74,222.64,4.4658]
[1734432669957,12.54014117,222.74,222.64,2.22]
[1734432669958,2.2457,222.66,222.64,2.22]
[1734432670157,2.2457,222.66,222.59,10.68909117]
[1734432670158,10.68909117,222.68,222.58,2.22]
[1734432670454,2.2462,222.61,222.58,2.22]
[1734432670656,2.22,222.67,222.58,2.22]
[1734432671155,2.246,222.63,222.58,4.4664]
[1734432671554,2.246,222.63,222.59,2.2463]
[1734432671749,2.2457,222.65,222.59,10.68909117]
[1734432671956,0.30595,222.74,222.62,10.68909117]
[1734432672255,2.55075,222.74,222.69,2.2453]
[1734432672454,0.30595,222.74,222.67,2.22]
[1734432673557,0.30595,222.74,222.7,2.2452]
[1734432673958,0.30595,222.74,222.67,2.22]
[1734432673959,2.55085,222.74,222.69,2.2453]
[1734432674858,2.55085,222.74,222.7,2.2452]
[1734432675254,0.30595,222.74,222.67,2.22]
[1734432675462,0.30595,222.74,222.72,2.2449]
[1734432675656,0.30595,222.74,222.72,2.22]
[1734432676057,2.2449,222.73,222.72,2.22]
[1734432676250,2.2449,222.73,222.68,4.4653]
[1734432676451,0.30595,222.74,222.64,1.4808]
[1734432676656,0.30595,222.74,222.65,2.22]
[1734432677869,0.30595,222.74,222.57,1.5075]
[1734432677870,10.68909117,222.72,222.59,2.22]
[1734432678059,10.68909117,222.69,222.59,2.22]
[1734432678660,2.2458,222.65,222.6,2.2462]
[1734432679057,10.68909117,222.69,222.59,2.22]
[1734432679058,2.2461,222.62,222.59,2.22]
[1734432679365,2.2461,222.62,222.57,3.7275]
[1734432679561,2.22,222.68,222.57,3.7275]
[1734432679762,2.22,222.68,222.57,4.4665]
[1734432680262,2.22,222.68,222.58,2.2464]
[1734432680662,2.2463,222.6,222.55,3.7211]
[1734432680864,10.68909117,222.66,222.55,1.4744]
[1734432681072,10.68909117,222.66,222.53,2.22]
[1734432682071,10.68909117,222.66,222.55,5.28125139]
[1734432682267,10.68909117,222.66,222.55,7.52795139]
[1734432682268,2.2464,222.59,222.55,7.52795139]
[1734432683771,2.2463,222.6,222.55,7.52795139]
[1734432684069,10.68909117,222.66,222.57,2.2465]
[1734432684274,2.22,222.67,222.55,5.28125139]
[1734432684476,2.22,222.67,222.56,6.23047733]
[1734432684666,2.22,222.67,222.56,1.4894]
[1734432684866,2.2459,222.64,222.59,2.2463]
[1734432688481,2.246,222.63,222.59,2.2463]
[1734432691478,2.246,222.63,222.6,4.75568337]
[1734432691777,12.90909117,222.69,222.56,1.4894]
[1734432691973,10.68909117,222.66,222.57,4.75571156]
[1734432692179,10.68909117,222.66,222.52,2.22]
[1734432692378,10.68909117,222.66,222.53,4.75824242]
[1734432692580,10.68909117,222.66,222.54,4.75824242]
[1734432692780,10.68909117,222.66,222.55,4.75824242]
[1734432692983,10.68909117,222.66,222.52,2.22]
[1734432693183,10.68909117,222.66,222.54,5.48549231]
[1734432693384,10.68909117,222.66,222.55,4.75834004]
[1734432693684,2.2464,222.59,222.55,2.2468]
[1734432694289,2.2465,222.58,222.54,7.73229231]
[1734432697388,2.2465,222.58,222.55,2.2467]
[1734432697584,12.90909117,222.63,222.54,5.48549231]
[1734432697791,10.68909117,222.6,222.49,2.22]
[1734432698289,2.2471,222.52,222.5,4.75948209]
[1734432698485,2.2471,222.52,222.49,2.22]
[1734432699183,2.22,222.57,222.49,2.22]
[1734432699987,2.2469,222.54,222.5,2.2472]
[1734432701689,2.2467,222.56,222.52,2.247]
[1734432701888,2.22,222.59,222.5,10.68909117]
[1734432702289,2.22,222.59,222.51,4.75615971]
[1734432702489,2.2467,222.56,222.52,2.247]
[1734432703085,2.2468,222.55,222.52,2.247]
[1734432703289,2.22,222.59,222.52,2.247]
[1734432704495,2.2467,222.56,222.52,2.247]
[1734432706092,2.2467,222.56,222.53,2.247]
[1734432706295,2.2467,222.56,222.5,10.68909117]
[1734432706496,2.2467,222.56,222.51,4.7551482]
[1734432706789,2.2467,222.56,222.49,7.51531364]
[1734432706790,2.22,222.59,222.49,5.29531364]
[1734432706989,10.68909117,222.58,222.52,4.7552652]
[1734432707186,10.68909117,222.55,222.52,4.7552652]
[1734432707391,2.247,222.53,222.52,4.7552652]
[1734432708298,2.2473,222.5,222.46,7.70749845]
[1734432709201,2.247,222.53,222.46,5.45989845]
[1734432709498,2.22,222.58,222.47,10.68909117]
[1734432709700,2.22,222.58,222.48,2.22]
[1734432709997,2.2468,222.55,222.51,2.2471]
[1734432710204,2.22,222.58,222.5,10.68909117]
[1734432710495,4.5394,222.62,222.5,10.68909117]
[1734432710496,5.2197,222.62,222.51,4.75024386]
[1734432710702,5.2197,222.62,222.5,10.68909117]
[1734432710900,5.2197,222.62,222.51,4.7502426]
[1734432711097,5.2197,222.62,222.53,2.2469]
[1734432712195,5.2197,222.62,222.54,2.2468]
[1734432712803,2.2465,222.58,222.54,2.2468]
[1734432714295,2.22,222.63,222.48,3.8112]
[1734432714296,2.2462,222.61,222.57,2.2465]
[1734432714702,10.68909117,222.68,222.54,3.7703]
[1734432714703,2.22,222.66,222.54,3.7703]
[1734432714903,10.68909117,222.68,222.55,4.75055314]
[1734432715102,2.22,222.67,222.58,2.2464]
[1734432715904,2.9769,222.69,222.59,2.2463]
[1734432716100,2.22,222.68,222.59,2.2463]
[1734432716302,2.2459,222.64,222.59,2.2463]
[1734432716705,2.2459,222.64,222.56,10.68909117]
[1734432717001,2.2457,222.65,222.6,2.2461]
[1734432717206,2.2457,222.65,222.56,10.68909117]
[1734432717401,2.2456,222.66,222.57,4.75125666]
[1734432717606,2.2456,222.66,222.58,4.75125666]
[1734432717805,2.22,222.68,222.59,6.97125666]
[1734432718007,2.22,222.68,222.59,2.22]
[1734432718407,2.9769,222.69,222.59,2.22]
[1734432718608,2.22,222.68,222.59,2.22]
[1734432719008,2.22,222.68,222.59,4.4663]
[1734432719607,2.2457,222.66,222.59,2.22]
[1734432719909,2.22,222.68,222.61,2.2461]
[1734432720211,2.9769,222.69,222.59,12.90909117]
[1734432720407,2.22,222.7,222.59,12.90909117]
[1734432720916,2.22,222.72,222.62,2.246]
[1734432721104,2.22,222.72,222.6,4.75618993]
[1734432721307,2.2454,222.69,222.64,2.2458]
[1734432721505,1.589,222.77,222.64,2.2458]
[1734432721506,10.68909117,222.76,222.64,2.22]
[1734432721804,3.809,222.77,222.68,2.2454]
[1734432722008,3.809,222.77,222.65,12.22959117]
[1734432722211,3.809,222.77,222.65,15.32239117]
[1734432722513,2.2449,222.73,222.67,2.2454]
[1734432723412,2.2449,222.73,222.68,2.2454]
[1734432723608,3.809,222.77,222.65,20.07980674]
[1734432723805,10.68909117,222.76,222.65,20.07980674]
[1734432724010,10.68909117,222.76,222.65,4.75741557]
[1734432724509,2.2455,222.68,222.65,4.75741557]
[1734432724709,10.68909117,222.73,222.65,4.75741557]
[1734432724907,2.22,222.72,222.65,4.75741557]
[1734432725807,2.2456,222.67,222.65,4.75741557]
[1734432728205,2.2451,222.72,222.67,2.2455]
[1734432728515,2.2451,222.72,222.65,12.90909117]
[1734432729513,2.2451,222.72,222.67,2.2455]
[1734432730610,1.589,222.77,222.67,2.2455]
[1734432730912,2.2452,222.71,222.67,2.2455]
[1734432731915,1.589,222.77,222.65,15.15479117]
[1734432732213,10.68909117,222.76,222.65,2.2457]
[1734432732405,2.2454,222.69,222.65,2.2457]
[1734432732612,10.68909117,222.76,222.66,2.2456]
[1734432732810,10.68909117,222.76,222.64,12.90909117]
[1734432733313,2.245,222.73,222.67,2.2455]
[1734432733512,10.68909117,222.76,222.67,2.2455]
[1734432734108,2.2451,222.72,222.67,2.2455]
[1734432736011,2.2451,222.71,222.67,2.2455]
[1734432740709,2.2454,222.69,222.65,2.2456]
[1734432741017,2.2454,222.69,222.64,12.90909117]
[1734432741218,2.22,222.76,222.64,12.90909117]
[1734432741419,2.2452,222.71,222.67,2.2455]
[1734432743512,2.22,222.76,222.67,2.2455]
[1734432743717,2.2453,222.7,222.66,2.2456]
[1734432744421,2.2453,222.7,222.67,2.2455]
[1734432744920,2.2453,222.7,222.65,2.22]
[1734432745116,2.2453,222.7,222.68,2.2454]
[1734432745817,0.36382,222.8,222.72,2.245]
[1734432746623,0.36382,222.8,222.71,2.22]
[1734432748421,10.68909117,222.78,222.68,2.22]
[1734432748723,2.22,222.77,222.68,2.22]
[1734432749120,2.22,222.77,222.68,4.4654]
[1734432750415,2.2451,222.72,222.68,4.4654]
[1734432752024,2.245,222.73,222.69,2.2453]
[1734432752723,6.81760093,222.75,222.68,2.22]
[1734432752925,6.81760093,222.73,222.66,6.81760093]
[1734432753328,2.2453,222.7,222.66,6.81760093]
[1734432753522,2.2453,222.7,222.68,6.81760093]
[1734432753722,6.81760093,222.74,222.68,6.81760093]
[1734432753924,6.81760093,222.76,222.7,6.81760093]
[1734432754624,2.2449,222.73,222.7,9.06280093]
[1734432756024,2.2449,222.73,222.7,2.2452]
[1734432756931,2.22,222.77,222.66,1.5276]
[1734432757429,2.22,222.76,222.66,1.5276]
[1734432758422,2.2453,222.7,222.66,3.7732]
[1734432761932,2.2452,222.71,222.68,2.2454]
[1734432762121,2.22,222.76,222.66,1.5276]
[1734432762322,2.22,222.77,222.67,10.65064922]
[1734432762530,2.22,222.78,222.7,2.2452]
[1734432763122,2.2449,222.74,222.7,2.2452]
[1734432764232,2.2448,222.75,222.71,2.2451]
[1734432764431,2.2448,222.75,222.67,10.65064922]
[1734432764630,2.2448,222.75,222.68,4.7736933]
[1734432764833,2.2448,222.75,222.71,2.245]
[1734432766327,2.2446,222.77,222.7,10.65064922]
[1734432766726,2.2446,222.77,222.71,4.77328604]
[1734432766927,2.2446,222.77,222.7,10.65064922]
[1734432767129,2.2446,222.77,222.71,4.77328492]
[1734432767335,2.2446,222.77,222.7,10.65064922]
[1734432767530,2.2446,222.77,222.74,2.2448]
[1734432768130,2.2446,222.77,222.7,10.65064922]
[1734432768328,2.2446,222.77,222.73,2.2449]
[1734432771632,2.22,222.82,222.71,2.2451]
[1734432771831,2.22,222.82,222.72,4.77292146]
[1734432772333,2.22,222.82,222.71,2.2451]
[1734432773139,2.2448,222.75,222.71,2.2451]
[1734432773436,2.22,222.82,222.67,13.61514922]
[1734432773635,2.2446,222.77,222.73,2.2449]
[1734432776439,2.22,222.81,222.72,6.81537404]
[1734432776638,2.2445,222.78,222.74,6.81537404]
[1734432777538,2.2445,222.78,222.75,2.2447]
[1734432779043,249.06947734,222.93,222.76,6.81537404]
[1734432779241,2.2442,222.81,222.78,6.81537404]
[1734432779543,6.81537404,222.85,222.78,6.81537404]
[1734432779742,2.244,222.83,222.79,2.2443]
[1734432781046,3.0702,222.92,222.8,6.81537404]
[1734432781235,6.81537404,222.89,222.82,6.81537404]
[1734432781438,2.2437,222.85,222.82,6.81537404]
[1734432781736,6.81537404,222.87,222.8,6.81537404]
[1734432782045,2.2437,222.85,222.8,9.05957404]
[1734432782649,2.2439,222.84,222.8,6.81537404]
[1734432782845,6.81537404,222.87,222.8,6.81537404]
[1734432783241,2.2437,222.85,222.8,6.81537404]
[1734432783444,6.81537404,222.87,222.8,6.81537404]
[1734432783640,6.81537404,222.88,222.82,6.81537404]
[1734432783842,2.2437,222.85,222.82,6.81537404]
[1734432784043,2.2437,222.85,222.8,2.2442]
[1734432784242,2.2437,222.85,222.81,6.81537404]
[1734432785745,2.2437,222.85,222.83,6.81537404]
[1734432787048,2.2437,222.85,222.81,9.05947404]
[1734432787249,2.2436,222.87,222.82,2.244]
[1734432787543,6.81537404,222.88,222.81,6.81537404]
[1734432787749,6.81537404,222.85,222.77,5.31404728]
[1734432787949,6.81537404,222.83,222.76,9.03537404]
[1734432788254,6.81537404,222.83,222.76,6.81537404]
[1734432788453,6.81537404,222.81,222.75,2.22]
[1734432789052,2.2445,222.78,222.75,2.22]
[1734432789248,6.81537404,222.81,222.68,2.8975]
[1734432789556,6.81537404,222.79,222.72,6.81537404]
[1734432789755,2.2445,222.77,222.72,6.81537404]
[1734432790250,2.2447,222.76,222.72,9.06037404]
[1734432791652,2.2448,222.75,222.72,9.06037404]
[1734432792051,6.81537404,222.79,222.71,9.03537404]
[1734432792256,2.2451,222.71,222.68,9.81567404]
[1734432792557,2.2451,222.71,222.68,12.03567404]
[1734432792750,2.2451,222.72,222.69,4.75778923]
[1734432792954,2.2451,222.72,222.7,6.81537404]
[1734432793151,6.81537404,222.77,222.7,6.81537404]
[1734432793356,6.81537404,222.75,222.68,5.2203]
[1734432793558,2.2449,222.73,222.69,6.81537404]
[1734432793851,2.2449,222.73,222.71,6.81537404]
[1734432794051,2.22,222.82,222.71,6.81537404]
[1734432794259,2.2445,222.77,222.74,6.81537404]
[1734432797760,2.2445,222.77,222.73,11.28027404]
[1734432799259,0.5005,222.9,222.87,6.81537404]
[1734432799759,2.7437,222.9,222.86,2.22]
[1734432799958,2.7437,222.9,222.87,6.81537404]
[1734432800460,0.5005,222.9,222.87,6.81537404]
[1734432803961,2.7438,222.9,222.87,6.81537404]
[1734432806263,2.7438,222.9,222.89,6.81537404]
[1734432806857,2.7438,222.9,222.86,2.22]
[1734432807060,2.7438,222.9,222.88,6.81537404]
[1734432807460,0.5005,222.9,222.88,6.81537404]
[1734432808561,2.2431,222.91,222.88,6.81537404]
[1734432808770,2.2431,222.91,222.9,6.81537404]
[1734432809568,6.81537404,222.94,222.86,2.22]
[1734432809768,6.81537404,222.94,222.87,6.81537404]
[1734432809769,2.2434,222.88,222.87,6.81537404]
[1734432810667,6.81537404,222.94,222.73,0.89794818]
[1734432810668,2.2438,222.85,222.73,0.89794818]
[1734432810870,2.2438,222.85,222.84,6.81537404]
[1734432811072,6.81537404,222.92,222.84,6.81537404]
[1734432812174,2.2436,222.87,222.84,6.81537404]
[1734432812467,6.81537404,222.92,222.84,6.81537404]
[1734432813669,2.2436,222.87,222.84,6.81537404]
[1734432814868,2.2,222.94,222.84,6.81537404]
[1734432815074,2.2433,222.9,222.86,6.81537404]
[1734432815474,2.2433,222.9,222.86,9.05897404]
[1734432816172,2.2433,222.9,222.88,6.81537404]
[1734432819679,2.2431,222.91,222.88,6.81537404]
[1734432819980,12.09851099,222.96,222.88,6.81537404]
[1734432820174,2.2432,222.9,222.88,6.81537404]
[1734432821774,2.2,222.99,222.88,9.05877404]
[1734432821975,6.81537404,222.98,222.91,6.81537404]
[1734432822470,2.243,222.93,222.91,6.81537404]
[1734432823374,2.2,222.99,222.91,6.81537404]
[1734432823579,2.2428,222.94,222.91,6.81537404]
[1734432823976,2.2428,222.94,222.93,6.81537404]
[1734432824571,2.2428,222.94,222.9,2.2432]
[1734432824572,15.11631618,223.0,222.87,2.2]
[1734432824777,2.2429,222.93,222.91,6.81537404]
[1734432825484,2.243,222.92,222.9,6.81537404]
[1734432826479,2.2427,222.96,222.9,6.81537404]
[1734432826679,6.81537404,222.98,222.9,6.81537404]
[1734432827481,2.243,222.93,222.92,6.81537404]
[1734432829876,2.2425,222.98,222.92,6.81537404]
[1734432830082,9.79717404,223.0,222.92,9.01537404]
[1734432830282,2.9818,223.0,222.94,6.81537404]
[1734432831885,6.14939074,223.02,222.94,6.81537404]
[1734432832081,12.96476478,223.02,222.94,6.81537404]
[1734432832283,2.2425,222.97,222.94,6.81537404]
[1734432832483,0.63387,223.02,222.96,6.81537404]
[1734432832885,2.2424,222.99,222.96,6.81537404]
[1734432833081,0.63387,223.02,222.96,6.81537404]
[1734432833387,2.2421,223.01,222.98,6.81537404]
[1734432833586,0.63387,223.02,222.98,6.81537404]
[1734432833785,0.63387,223.02,223.0,6.81537404]
[1734432834778,2.2416,223.06,223.01,2.242]
[1734432834983,5.48818618,223.12,223.04,6.81537404]
[1734432835185,12.30356022,223.12,223.04,6.81537404]
[1734432835590,6.81537404,223.1,223.04,6.81537404]
[1734432836284,2.2416,223.07,223.04,6.81537404]
[1734432838787,2.2416,223.06,223.03,2.2]
[1734432839787,6.81537404,223.1,223.03,2.2]
[1734432839987,6.81537404,223.06,222.94,1.5287]
[1734432840187,2.2,223.09,222.95,6.81537404]
[1734432840188,6.81537404,223.03,222.95,6.81537404]
[1734432840594,3.0695,223.08,222.97,6.81537404]
[1734432840996,6.81537404,223.02,222.93,3.7211]
[1734432841195,2.2,223.03,222.97,6.81537404]
[1734432841396,6.81537404,223.04,222.97,6.81537404]
[1734432841793,9.01537404,223.05,222.97,6.81537404]
[1734432842093,2.2423,223.0,222.96,6.81537404]
[1734432844295,6.81537404,223.03,222.93,3.7211]
[1734432844591,6.81537404,223.03,222.96,6.81537404]
[1734432846097,2.2423,223.0,222.96,6.81537404]
[1734432846491,9.01537404,223.05,222.96,9.05797404]
[1734432846693,2.2421,223.02,222.96,9.05797404]
[1734432846892,9.01537404,223.05,222.98,6.81537404]
[1734432847491,2.2422,223.01,222.98,6.81537404]
[1734432848695,2.242,223.02,222.98,6.81537404]
[1734432848991,9.01537404,223.05,222.98,6.81537404]
[1734432849791,2.2422,223.01,222.98,6.81537404]
[1734432851800,2.2422,223.01,223.0,6.81537404]
[1734432859704,9.01537404,223.07,223.0,6.81537404]
[1734432859705,2.242,223.02,223.0,6.81537404]
[1734432859902,9.01537404,223.07,222.93,4.599]
[1734432860107,6.81537404,223.01,222.93,6.799]
[1734432860304,6.81537404,223.01,222.94,6.81537404]
[1734432860904,2.2426,222.96,222.94,6.81537404]
[1734432862012,2.2426,222.96,222.93,5.3118]
[1734432862013,2.2426,222.96,222.92,7.54600865]
[1734432862209,6.81537404,223.01,222.87,2.2435]
[1734432862210,2.243,222.92,222.87,2.2435]
[1734432862514,6.81537404,222.95,222.88,4.74707249]
[1734432862710,6.81537404,222.93,222.84,3.6598]
[1734432862914,6.81537404,222.93,222.86,6.81537404]
[1734432863210,6.81537404,222.93,222.84,2.2]
[1734432863413,6.81537404,222.93,222.85,6.81537404]
[1734432863606,6.81537404,222.91,222.85,6.81537404]
[1734432864709,6.81537404,222.89,222.81,2.2]
[1734432864906,6.81537404,222.89,222.83,6.81537404]
[1734432865615,2.2438,222.85,222.83,6.81537404]
[1734432866818,6.81537404,222.89,222.82,6.81537404]
[1734432867004,6.81537404,222.89,222.81,9.01537404]
[1734432867210,6.81537404,222.89,222.81,6.81537404]
[1734432867411,2.244,222.82,222.76,2.2446]
[1734432867610,2.244,222.82,222.75,1.5478]
[1734432867611,6.81537404,222.83,222.77,4.74452421]
[1734432867816,6.81537404,222.81,222.75,6.81537404]
[1734432868517,6.81537404,222.81,222.73,6.81537404]
[1734432868714,6.81537404,222.79,222.73,6.81537404]
[1734432868913,6.81537404,222.79,222.67,4.5822]
[1734432868914,6.81537404,222.79,222.72,6.81537404]